Cogmind - Beta 9.1 @@@ ROGUE MODE // 2019.11.06 @ 15:35:19 Player: Judas Result: Destroyed by S-10 Pest with Light Assault Rifle Performance ------------- Evolutions (2) 1000 Regions Visited (5) 1000 Robots Destroyed (39) 195 Value Destroyed (923) 923 Prototype IDs (2) 40 Alien Tech Used (0) 0 Bonus (116) 116 TOTAL SCORE: 3274 Bonus ------- Follower Combat Kills 165 Friendly Fire -49 Cogmind --------- Core Integrity 0/550 Matter 161/300 Energy 138/280 System Corruption 10% Temperature Cool (453) Location -8/Materials Parts ------- Power (1) Cooled Ion Engine Propulsion (2) Utility (5) High-capacity Storage Unit Signal Interpreter Improved Targeting Computer Improved ECM Suite Weapon (3) Inventory (12) Ion Engine Light Ion Engine Large Storage Unit Advanced Visual Processing Unit Peak State ------------ Power Light Nuclear Core Propulsion Light Treads Light Treads Utility High-capacity Storage Unit Improved Sensor Array Signal Interpreter Improved Targeting Computer Improved ECM Suite Weapon Minigun Minigun Minigun Inventory Ion Engine Light Ion Engine Light Treads Light Treads Improved Sensor Array Hardened Light Armor Plating Advanced Beam Cannon Advanced Beam Cannon Assault Rifle Heavy Assault Rifle Mini Grenade Launcher Mining Laser [Rating: 25] Favorites ----------- Power Light Nuclear Core Engine Light Ion Engine Power Core Light Nuclear Core Propulsion Light Treads Treads Light Treads Utility Improved Sensor Array Device Improved Sensor Array Storage High-capacity Storage Unit Processor Improved Targeting Computer Protection Hardened Light Armor Plating Weapon Minigun Energy Gun Small Laser Energy Cannon Particle Cannon Ballistic Gun Minigun Launcher Mini Grenade Launcher Special Weapon Mining Laser Impact Weapon Mace Build | -11 -10 -10 -9 -9 -8 ------- Run | Scr Mat Min Mat Min Mat Slots Evolved 4 | . . . 2 . 2 Power . | . . . . . . Propulsion . | . . . . . . Utility 3 | . . . 1 . 2 Weapon 1 | . . . 1 . . Parts Attached 48 | 6 12 . 13 . 17 Power 7 | 1 2 . 1 . 3 Engine 5 | 1 2 . . . 2 Core 2 | . . . 1 . 1 Reactor . | . . . . . . Propulsion 9 | 2 1 . 3 . 3 Treads 9 | 2 1 . 3 . 3 Leg . | . . . . . . Wheel . | . . . . . . Hover . | . . . . . . Flight . | . . . . . . Utility 10 | 1 3 . 2 . 4 Device 4 | . 2 . . . 2 Storage 3 | 1 1 . 1 . . Processor 2 | . . . 1 . 1 Hackware . | . . . . . . Protection 1 | . . . . . 1 Artifact . | . . . . . . Weapon 22 | 2 6 . 7 . 7 Energy Gun 2 | 2 . . . . . Energy Cannon 10 | . 4 . 4 . 2 Ballistic Gun 7 | . 1 . 3 . 3 Ballistic Cannon . | . . . . . . Launcher 1 | . . . . . 1 Special Weapon 1 | . . . . . 1 Impact Weapon 1 | . 1 . . . . Slashing Weapon . | . . . . . . Piercing Weapon . | . . . . . . Special Melee Weapon . | . . . . . . Unidentified Prototypes 2 | . . . 1 . 1 Parts Lost 16 | . . . 1 . 15 Power 1 | . . . . . 1 Propulsion 3 | . . . . . 3 Utility 2 | . . . . . 2 Weapon 10 | . . . 1 . 9 Highest Loss Streak 15 | . . . 1 . 15 Average Slot Usage (%) 95 | . 98 100 93 100 95 Engine 4 | . 14 14 2 . . Core 6 | . . . 8 11 7 Treads 22 | . 28 28 22 22 16 Device 13 | . 13 14 11 11 17 Storage 15 | . 14 14 20 11 9 Processor 5 | . . . 1 11 18 Energy Gun 1 | . 6 . . . . Energy Cannon 11 | . 16 28 14 . . Ballistic Gun 13 | . 2 . 12 33 24 Naked Turns . | . . . . . . Heaviest Build 54 | 12 44 44 54 46 49 Greatest Support 40 | 40 40 40 40 40 40 Greatest Overweight (x) 12 | . 1 1 1 1 12 Average Overweight (x) . | . . 1 1 1 1 Largest Inventory Capacity 12 | 6 12 12 12 12 12 Average Capacity 10 | 5 8 12 12 12 12 Most Carried 12 | 4 8 8 12 12 12 Average Carried 9 | 2 5 8 10 12 11 Final Capacity 12 | 6 12 12 12 12 12 Final Carried 12 | 4 8 8 12 12 4 Class Distribution -------------------- 53% | Mutant 21% | Scavenger-Skirmisher 15% | Skirmisher 9% | Gunner Dominant Class ---------------- Mutant | -10/Materials Mutant | -10/Mines Mutant | -9/Materials Gunner | -9/Mines Scavenger-Skirmisher | -8/Materials Resources | -11 -10 -10 -9 -9 -8 ----------- Run | Scr Mat Min Mat Min Mat Matter Collected 1015 | 190 91 . 403 . 331 Remotely . | . . . . . . Salvage Created 1208 | . 257 . 381 . 570 Parts 98 | . 18 . 39 . 41 Haulers Intercepted 1 | . . . . . 1 Recyclers Shooed . | . . . . . . Parts Field Recycled . | . . . . . . Retrieved Matter . | . . . . . . Parts Self-Destructed . | . . . . . . Prevented . | . . . . . . Kills | -11 -10 -10 -9 -9 -8 ------- Run | Scr Mat Min Mat Min Mat Combat Hostiles Destroyed 27 | . 7 . 9 . 11 Guns 17 | . 3 . 8 . 6 Cannons 7 | . 4 . 1 . 2 AOE 3 | . . . . . 3 Classes Destroyed 10 | . 3 . 4 . 3 Worker 1 | . . . 1 . . Builder 3 | . 1 . . . 2 Hauler 1 | . . . . . 1 Mechanic 1 | . . . . . 1 Operator 1 | . . . 1 . . Watcher 4 | . . . 2 . 2 Swarmer 11 | . 3 . 5 . 3 Grunt 8 | . 4 . 1 . 3 Sentry 8 | . . . 3 . 5 Zionite 1 | . . . . . 1 Best Kill Streak 8 | . 4 . 5 . 8 Combat Bots Only 5 | . 4 . 3 . 5 Max Kills in Single Turn 3 | . 1 . 1 . 3 Gunslinging . | . . . . . . Exploded 2 | . . . . . 2 Melee . | . . . . . . Uniques/NPCs Destroyed . | . . . . . . Combat | -11 -10 -10 -9 -9 -8 -------- Run | Scr Mat Min Mat Min Mat Damage Taken 3107 | . 407 . 354 . 2346 Core 723 | . 78 . 93 . 552 Absorbed by Shields . | . . . . . . Core Remaining (%) 81 | 100 . 68 . 76 . Volleys Fired 87 | . 24 . 34 . 29 Largest 3 | . 2 . 3 . 3 Hottest 204 | . 136 . 204 . 156 Shots Fired 205 | . 48 . 79 . 78 Gun 158 | . 31 . 59 . 68 Cannon 43 | . 17 . 20 . 6 Launcher 3 | . . . . . 3 Special 1 | . . . . . 1 Kinetic 140 | . 13 . 59 . 68 Thermal 62 | . 35 . 20 . 7 Explosive 3 | . . . . . 3 Electromagnetic . | . . . . . . Robot Hit Streak 15 | . 8 . 15 . 11 Robot Miss Streak 3 | . 2 . 3 . 3 Penetration Max . | . . . . . . Secondary Targets 4 | . . . 3 . 1 Max Gunslinging Chain 1 | . . . 1 . 1 Shots Hit Robots 130 | . 27 . 52 . 51 Core Hits 61 | . 11 . 18 . 32 Critical Hits 2 | . . . 1 . 1 Critical Kills 1 | . . . . . 1 Critical Parts Destroyed 1 | . . . 1 . . Melee Attacks 2 | . 2 . . . . Impact 2 | . 2 . . . . Slashing . | . . . . . . Piercing . | . . . . . . Sneak Attacks . | . . . . . . Combat Hostiles . | . . . . . . Follow-up Attacks . | . . . . . . Damage Inflicted 2538 | 2 405 . 814 . 1317 Guns 1609 | . 197 . 631 . 781 Cannons 514 | . 208 . 183 . 123 Explosions 388 | . . . . . 388 Melee . | . . . . . . Ramming 3 | 2 . . . . 1 Kinetic 1490 | . 78 . 631 . 781 Thermal 657 | . 327 . 183 . 147 Explosive 388 | . . . . . 388 Electromagnetic . | . . . . . . Impact . | . . . . . . Slashing . | . . . . . . Piercing . | . . . . . . Highest Corruption 10 | . . . . . 10 Average Corruption 10 | . . . . . 10 Corruption Purged . | . . . . . . Effects 1 | . . . . . 1 Heat Flow Errors 1 | . . . . . 1 Overload Shots . | . . . . . . Overflow Damage 6 | . . . . . 6 Projectiles . | . . . . . . Explosions 6 | . . . . . 6 Melee . | . . . . . . Knockbacks . | . . . . . . Impact . | . . . . . . Kinetic . | . . . . . . Secondary . | . . . . . . Self-Inflicted Damage 24 | . . . . . 24 Shots 1 | . . . . . 1 Rammed 2 | 1 . . . . 1 Targets Rammed 2 | 1 . . . . 1 Kicked . | . . . . . . Crushed . | . . . . . . Highest Temperature 571 | . 378 . 571 . 453 Average Temperature 126 | . 158 . 133 . 73 Received Heat Transfer 705 | . 174 . 45 . 486 Effects 13 | . 4 . 7 . 2 Shutdowns 1 | . . . 1 . . Energy Bleed 2 | . . . 2 . . Interference 4 | . 2 . . . 2 Short Circuit 2 | . 1 . 1 . . Damage (minor) 3 | . 1 . 2 . . Damage (core) 1 | . . . 1 . . Siege Activations . | . . . . . . Robots Corrupted . | . . . . . . Combat Hostiles . | . . . . . . Parts Fried . | . . . . . . Impact Corruptions . | . . . . . . Robots Melted . | . . . . . . Combat Hostiles . | . . . . . . Parts Melted 1 | . 1 . . . . Heat Transferred 1309 | . 704 . 333 . 272 Parts Sabotaged . | . . . . . . Parts Stolen . | . . . . . . Parts Stripped . | . . . . . . Power Chain Reactions . | . . . . . . Missiles Intercepted . | . . . . . . Alert | -11 -10 -10 -9 -9 -8 ------- Run | Scr Mat Min Mat Min Mat Peak Influence 252 | . 165 5 187 45 252 Average Influence 94 | . 112 5 99 45 102 Maximum Alert Level 1 | . . . . . 1 Low Security (%) 97 | . . . . . . Level 1 2 | . . . . . . Level 2 . | . . . . . . Level 3 . | . . . . . . Level 4 . | . . . . . . Level 5 . | . . . . . . High Security . | . . . . . . Max Security . | . . . . . . Squads Dispatched 5 | . . . 2 . 3 Investigation 1 | . . . 1 . . Extermination . | . . . . . . Reinforcement 2 | . . . 1 . 1 Assault . | . . . . . . Garrison 2 | . . . . . 2 Intercept . | . . . . . . Construction Impeded 1 | . . . . . 1 Haulers Reinforced . | . . . . . . Stealth | -11 -10 -10 -9 -9 -8 --------- Run | Scr Mat Min Mat Min Mat Distress Signals 3 | . . . 1 . 2 Communications Jammed . | . . . . . . Distress Signals . | . . . . . . Times Spotted 62 | . 10 . 19 . 33 Peak Tracking Total 11 | . 5 . 4 . 11 Tactical Retreats 3 | . . . 1 . 2 Traps | -11 -10 -10 -9 -9 -8 ------- Run | Scr Mat Min Mat Min Mat Traps Triggered . | . . . . . . Indirectly . | . . . . . . Trap Hack Attempts . | . . . . . . Triggered . | . . . . . . Disarmed . | . . . . . . Reprogrammed . | . . . . . . Reused . | . . . . . . Traps Extracted . | . . . . . . Installed . | . . . . . . Triggered . | . . . . . . Machines | -11 -10 -10 -9 -9 -8 ---------- Run | Scr Mat Min Mat Min Mat Machines Disabled . | . . . . . . Max in Single Turn . | . . . . . . Machines Sabotaged . | . . . . . . Garrisons Compromised . | . . . . . . Overloaded Fab Kills . | . . . . . . Fab Network Shutdowns . | . . . . . . Hacking | -11 -10 -10 -9 -9 -8 --------- Run | Scr Mat Min Mat Min Mat Machines Accessed 7 | . . . 4 . 3 Terminals 4 | . . . 2 . 2 Fabricators . | . . . . . . Repair Stations 2 | . . . 1 . 1 Recycling Units . | . . . . . . Scanalyzers 1 | . . . 1 . . Garrison Access . | . . . . . . Total Hacks 18 | . . . 11 . 7 Successful 12 | . . . 7 . 5 Failed 6 | . . . 4 . 2 Catastrophic 2 | . . . 1 . 1 Database Lockouts . | . . . . . . Manual 5 | . . . 4 . 1 Terminals 10 | . . . 5 . 5 Fabricators . | . . . . . . Repair Stations 4 | . . . 2 . 2 Recycling Units . | . . . . . . Scanalyzers 4 | . . . 4 . . Garrison Access . | . . . . . . Terminal Hacks 3 | . . . 1 . 2 Record 2 | . . . . . 2 Recall Investigation 1 | . . . 1 . . Fabricator Hacks . | . . . . . . Repair Station Hacks 4 | . . . 2 . 2 Scan Component 2 | . . . 1 . 1 Repair 2 | . . . 1 . 1 Recycling Unit Hacks . | . . . . . . Scanalyzer 2 | . . . 2 . . Insert Component 1 | . . . 1 . . Analyze 1 | . . . 1 . . Garrison Access Hacks . | . . . . . . Unauthorized Hacks 8 | . . . 6 . 2 Terminals 2 | . . . 1 . 1 Botnet 2 | . . . 1 . 1 Fabricators . | . . . . . . Repair Stations . | . . . . . . Recycling Units . | . . . . . . Scanalyzers 1 | . . . 1 . . Extract 1 | . . . 1 . . Garrison Access . | . . . . . . Data Cores Recovered . | . . . . . . Used . | . . . . . . Hacking Detections 5 | . . . 3 . 2 Full Trace Events 3 | . . . 2 . 1 Feedback Events . | . . . . . . Feedback Blocked . | . . . . . . Robot Schematics Acquired . | . . . . . . Robots Built . | . . . . . . Matter . | . . . . . . Time . | . . . . . . Total Robot Build Rating . | . . . . . . Part Schematics Acquired 3 | . . . 3 . . Parts Built . | . . . . . . Matter . | . . . . . . Time . | . . . . . . Total Part Build Rating . | . . . . . . Parts Repaired 2 | . . . 1 . 1 Time 102 | . . . 64 . 38 Parts Recycled . | . . . . . . Recycled Matter . | . . . . . . Retrieved Matter . | . . . . . . Retrieved Components . | . . . . . . Parts Scanalyzed 1 | . . . 1 . . Part Schematics Acquired 1 | . . . 1 . . Parts Damaged . | . . . . . . Bothacking | -11 -10 -10 -9 -9 -8 ------------ Run | Scr Mat Min Mat Min Mat Used RIF Installer . | . . . . . . Robots Hacked . | . . . . . . Non-combat . | . . . . . . Combat . | . . . . . . Robot Hacks Applied . | . . . . . . Relay Couplers Released . | . . . . . . Robots Rewired . | . . . . . . Allies Hacked . | . . . . . . Hacks Repelled . | . . . . . . Allies | -11 -10 -10 -9 -9 -8 -------- Run | Scr Mat Min Mat Min Mat Total Allies 5 | . . 3 . 2 . Largest Group 3 | . . 3 3 2 2 Highest-Rated Group 45 | . . 40 40 45 45 Highest-Rated Ally 31 | . . 16 16 31 31 Total Orders . | . . . . . . Ally Attacks 39 | . . . 19 . 20 Total Damage 457 | . . . 201 . 256 Kills 8 | . . . 4 . 4 Allies Corrupted . | . . . . . . Allies Melted . | . . . . . . Intel | -11 -10 -10 -9 -9 -8 ------- Run | Scr Mat Min Mat Min Mat Robot Analysis Total . | . . . . . . Derelict Logs Recovered . | . . . . . . Drone Launches . | . . . . . . Drone Recoveries . | . . . . . . Exploration | -11 -10 -10 -9 -9 -8 ------------- Run | Scr Mat Min Mat Min Mat Turns Passed 2072 | 97 435 63 904 45 528 Spaces Moved 812 | 54 161 36 331 26 204 Core 4 | 3 . . . . 1 Treads 808 | 51 161 36 331 26 203 Legs . | . . . . . . Wheels . | . . . . . . Hover . | . . . . . . Flight . | . . . . . . Fastest Speed 50 | 50 160 180 180 180 180 Average Speed 176 | 153 167 180 180 180 182 Slowest Speed 650 | 160 180 180 180 180 650 Overloaded Moves . | . . . . . . Propulsion Burnouts . | . . . . . . Robots Hopped . | . . . . . . Cave-ins Triggered 1 | . . . . . 1 Exploration Rate (%) 18 | 5 27 16 25 11 27 Regions Visited 5 Branch Regions 2 Pre-discovered Areas . | . . . . . . Known Exits Taken . | . . . . . . Unknown Exits Taken 5 | 1 1 1 1 1 . Scrap Searched . | . . . . . . Spaces Dug . | . . . . . . Terrain Destroyed 23 | . . . . . 23 Melee . | . . . . . . Projectile . | . . . . . . AOE 23 | . . . . . 23 Actions | -11 -10 -10 -9 -9 -8 --------- Run | Scr Mat Min Mat Min Mat Total 1289 | 64 277 35 579 25 309 Wait 299 | . 62 . 189 . 48 Move 807 | 53 160 35 330 25 204 Hop . | . . . . . . Pick Up 24 | 4 8 . 7 . 5 Fast Attach 13 | 6 2 . 4 . 1 Attach 16 | . 2 . 3 . 11 Detach . | . . . . . . Swap 19 | . 8 . 6 . 5 Drop 20 | . 9 . 6 . 5 Fire 87 | . 24 . 34 . 29 Melee 2 | . 2 . . . . Ram . | . . . . . . Kick . | . . . . . . Crush 2 | 1 . . . . 1 Escape Stasis . | . . . . . . Rewire . | . . . . . . Trap . | . . . . . . Miscellaneous . | . . . . . . Route ------- -11/Scrapyard -10/Materials -10/Mines -9/Materials -9/Mines -8/Materials History --------- Turn | Location | Event 4 | -11/Scrapyard | Discovered new exit (range 16) 98 | -11/Scrapyard | Entered Materials 311 | -10/Materials | Build established: Mutant 510 | -10/Materials | Discovered new exit (range 8) 533 | -10/Materials | Entered Mines 548 | -10/Mines | Assisted by bots powering up and referring to "LRC-V3" 589 | -10/Mines | Discovered new exit (range 5) 596 | -10/Mines | Entered Materials 596 | -9/Materials | Accompanied by 3 allies 596 | -9/Materials | Evolved 2 slots: Utility x1, Weapon x1 1179 | -9/Materials | Repaired Adv. Beam Cannon 1476 | -9/Materials | Discovered new exit (range 7) 1500 | -9/Materials | Entered Mines 1536 | -9/Mines | Discovered new exit (range 6) 1545 | -9/Mines | Entered Materials 1545 | -8/Materials | Accompanied by 2 allies 1545 | -8/Materials | Evolved 2 slots: Utility x2 1550 | -8/Materials | Led the pair of lost Derelicts to an unsafe place 1709 | -8/Materials | Repaired Lgt. Nuclear Core 1877 | -8/Materials | Garrison activated, responded to threat 2004 | -8/Materials | Build established: Scavenger-Skirmisher 2038 | -8/Materials | Core integrity fell below 50% 2064 | -8/Materials | Crushed by falling debris 2064 | -8/Materials | System corruption reached 10% 2068 | -8/Materials | Core integrity fell below 20% 2073 | -8/Materials | Destroyed by S-10 Pest with Light Assault Rifle Last Messages --------------- 02064_ The unstable cave ceiling collapses. 02064_ Crushed by falling debris. 02064_ Adv. Beam Cannon destroyed. 02064_ System corrupted by crushing effect (+1). 02064_ Hrd. Light Armor Plating destroyed. 02064_ System corrupted by crushing effect (+4). 02064_ Adv. Beam Cannon destroyed. 02064_ System corrupted by crushing effect (+5). 02064_ Flight Unit crushed. 02064_ K-01 Serf collects debris. 02064_ W-25 Informer destroyed. 02065_ Acquired 10 matter. 02067_ Overheating: System interference. 02067_ Assault Rifle temporarily disabled. 02067_ Imp. Targeting Computer temporarily disabled. 02068_ Assault Rifle destroyed. 02068_ K-01 Serf collects debris. 02071_ System corrupted: Heat flow error (+142). 02072_ K-01 Serf collects debris. 02072_ Mining Laser destroyed. Map ----- +----------------------------------------------------+ | ???????????????????????????# #???????????? | | ???????????????????????????# #???????????? | | ???????????????????????????# +???????????? | | ????????????????????????? #???????????? | | ????????????????????????? #???????????? | | ????????????????????? ?"" #???????????? | | ????????????????????# "G % #???????????# | | ????????????????????# "" #???+######## | | ????????????????????# ???? # | | ????????????????????# ????? + """ | | ????????????????????# ??????#=""" | | ????????????????????# #??????#%""" | | ????????????????????# """ #??????# ![ | | ????????????????????# """ #??????# ! *! | | ????????????????????# """ ##########/## | | ????????????????????# """ ! ! | | ?????????? ###### = | | ?????????? % | | ????????? ! ####+######+####### | | ????????????? ## # | | ???????????????????? =! ## """ # | | ????????????????????# k # ## """ # | | ????????????????????#%= ########## """ # | | ??????????????#######[%*##???????#"S # | | ?????????###### !*#*Y!=%]#???????#""" # | | ?????????# *%%!@s!!= #???????# "" # | | ?????????# !!!%=sgg k#???????# ! # | | ?????????# !!=*!=[ #???????########### | | ?????????+ u## # #?????????????????? | | ?????????# ??# ######?????????????????? | | ?????????# ???### ##??????????????????????? | | ????????????????####???????????????????????? | | ???????????????????????????????????????????? | | ???????????????????????????????????????????? | | ???????????????????????????????????????????? | | ???????????????????????????????????????????? | | ???????????????????????????????????????????? | | ???????????????????????????????????????????? | | ???????????????????????????????????????????? | | ???????????????????????????????????????????? | | ???????????????????????????????????????????? | | ???????????????????????????????????????????? | | ???????????????????????????????????????????? | | ???????????????????????????????????????????? | | ???????????????????????????????????????????? | | ???????????????????????????????????????????? | | ???????????????????????????????????????????? | | ???????????????????????????????????????????? | | ???????????????????????????????????????????? | | ???????????????????????????????????????????? | +----------------------------------------------------+ Best States ------------- Heat Dissipation 31 Energy Generation 14 Energy Capacity 560 Matter Stores 300 Matter Capacity 300 Sight Range 16 Robot Scan Range 13 Terrain Scan Density 10 ECM Strength 2 Armor Coverage 150 Evasion (%) 40 Targeting Accuracy 6 Recoil Reduction 2 Item Schematics ----------------- Hrd. Light Armor Plating | -9/Materials | Scanalyzed Med. Battery | -9/Materials | Extracted Beam Rifle | -9/Materials | Extracted Robot Schematics ------------------ None Fabricated ------------ Nothing Alien Tech Used ----------------- None Achievements -------------- None Challenges ------------ None Game ------ Seed RefineryModifiedMatter Manual? 0 Play Time 00:28:00 Cumulative 9.9 hours Start 2019.11.06 @ 15:04:37 End 2019.11.06 @ 15:35:19 Sessions 1 Manual Loads 0 Difficulty Rogue Special Mode None Game No. 25 Rogue 25 Adventurer 0 Explorer 0 Win Type - Total 0 Types 0/0/0/0/0/0/0 Lore% 9 Gallery% 15 Achievement% 14 Wizard Run 0 Options --------- ASCII 0 Keyboard 0 Movement Mouse Keybinds 0 Fullscreen 1 Font 18/SmallcapsGlow Map View 76x50 Tactical HUD 1 Map Filters NONE Filters NONE Steam 1 RUN: f1a8e5f1-8021-4e88-ae2c-14f2807f98ef